Cogmind - Beta 16.1 @@@ ROGUE MODE // 2026.02.21 @ 13:48:49 Player: Zish Result: Destroyed by KN-AQD(R) with Subdweller Laser Performance ------------- Evolutions (0) 0 Regions Visited (2) 400 Robots Destroyed (27) 135 Value Destroyed (779) 779 Prototype IDs (2) 40 Alien Tech Used (0) 0 Bonus (0) 0 TOTAL SCORE: 1354 Bonus ------- None Cogmind --------- Core Integrity 0/250 Matter 292/300 Energy 160/160 System Corruption 0% Temperature Cool (6) Movement Treading (480) Ox4 Location -10/Subcaves Parts ------- > --- POWER (1) -------- Light Nuclear Core > --- PROPULSION (2) --- Light Treads > --- UTILITY (2) ------ Huge Storage Unit > --- WEAPON (2) ------- Autogun Autogun > --- INVENTORY (25) --- High-capacity Storage Unit Transport Network Coupler Hacking Suite Light Cannon Battle Cannon Grenade Launcher Grenade Launcher Maul Maul Peak State ------------ > --- POWER ------------ Light Ion Engine > --- PROPULSION ------- Light Treads Light Treads > --- UTILITY ---------- Huge Storage Unit Light Armor Plating > --- WEAPON ----------- Autogun Autogun > --- INVENTORY -------- Light Ion Engine Light Nuclear Core Light Treads High-capacity Storage Unit Transport Network Coupler Hacking Suite Autogun Autogun Grenade Launcher Grenade Launcher Maul Maul [Rating: 11] Favorites ----------- Power Light Ion Engine Engine Light Ion Engine Power Core Light Nuclear Core Propulsion Light Treads Treads Light Treads Utility Huge Storage Unit Storage Huge Storage Unit Protection Light Armor Plating Weapon Autogun Energy Gun EM Pulse Gun Ballistic Gun Autogun Launcher Grenade Launcher Build | -11 -10 -10 ------- Run | Yrd Mat Sub Slots Evolved . | . . . Power . | . . . Propulsion . | . . . Utility . | . . . Weapon . | . . . Parts Attached 18 | 6 8 4 Power 3 | 1 . 2 Engine 2 | 1 . 1 Core 1 | . . 1 Reactor . | . . . Propulsion 3 | 2 . 1 Treads 3 | 2 . 1 Leg . | . . . Wheel . | . . . Hover . | . . . Flight . | . . . Utility 5 | 1 4 . Device . | . . . Storage 4 | 1 3 . Processor . | . . . Hackware . | . . . Protection 1 | . 1 . Artifact . | . . . Weapon 7 | 2 4 1 Energy Gun 2 | 2 . . Energy Cannon . | . . . Ballistic Gun 4 | . 3 1 Ballistic Cannon . | . . . Launcher 1 | . 1 . Special Weapon . | . . . Impact Weapon . | . . . Slashing Weapon . | . . . Piercing Weapon . | . . . Special Melee Weapon . | . . . Unidentified Prototypes . | . . . Parts Lost 7 | . . 7 Power 2 | . . 2 Propulsion 2 | . . 2 Utility 1 | . . 1 Weapon 2 | . . 2 Highest Loss Streak 2 | . . 2 To Critical Strikes 1 | . . 1 Average Backups 9 | . 9 10 Power . | . 1 . Propulsion . | . . . Utility 2 | . 1 3 Weapon 5 | . 5 6 Tool/Special . | . . . Unused Backups 8 | . . 8 Power 1 | . . 1 Propulsion . | . . . Utility 2 | . . 2 Weapon 5 | . . 5 Tool/Special . | . . . Average Slot Usage (%) 88 | . 88 88 Engine 10 | . 14 8 Core 3 | . . 5 Treads 24 | . 28 21 Storage 14 | . 14 14 Protection 6 | . 3 9 Ballistic Gun 27 | . 25 28 Peak Build Rating 11 | 6 11 11 Average Rating 9 | 3 9 9 On Entrance 5 | . 6 11 Avg Prop Armor Cover (%) . | . . . Naked Turns . | . . . Heaviest Build 94 | 12 92 94 Greatest Support 40 | 40 40 40 Greatest Overweight (x) 4 | . 2 4 Average Overweight (x) 1 | . . 2 Largest Inventory Capacity 25 | 8 25 25 Average Capacity 22 | 6 20 25 Most Carried 13 | 2 13 13 Average Carried 9 | . 9 10 Final Capacity 25 | 8 25 25 Final Carried 13 | 1 13 9 Class Distribution -------------------- 100% | Mutant Dominant Class ---------------- Mutant | -10/Materials Mutant | -10/Subcaves Resources | -11 -10 -10 ----------- Run | Yrd Mat Sub Matter Collected 921 | 226 322 373 Remotely . | . . . Salvage Created 968 | . 593 375 Parts 51 | . 34 17 Haulers Intercepted . | . . . Recyclers Shooed 1 | . 1 . Parts Field Recycled . | . . . Retrieved Matter . | . . . Parts Self-Destructed 11 | . . 11 Prevented . | . . . Parts Restored . | . . . Kills | -11 -10 -10 ------- Run | Yrd Mat Sub Combat Hostiles Destroyed 20 | . 11 9 Guns 19 | . 10 9 AOE 1 | . 1 . Classes Destroyed 7 | . 5 2 Worker 2 | . 2 . Tunneler 1 | . 1 . Recycler 2 | . 2 . Operator 2 | . 2 . Swarmer 2 | . . 2 Grunt 11 | . 11 . Subdweller 7 | . . 7 Best Kill Streak 7 | . 7 2 Combat Bots Only 5 | . 5 2 Max Kills in Single Turn 3 | . 3 1 Gunslinging 1 | . 1 . Exploded 1 | . 1 . Melee . | . . . Uniques/NPCs Destroyed . | . . . Combat | -11 -10 -10 -------- Run | Yrd Mat Sub Hostile Shots Fired 84 | . 33 51 Missed 23 | . 11 12 Hits 61 | . 22 39 Projectile 61 | . 22 39 Critical Strikes 1 | . . 1 Damage Taken 1158 | . 291 867 Core 257 | . 39 218 Absorbed by Shields . | . . . Core Remaining (%) 100 | 100 . . Volleys Fired 73 | . 31 42 Largest 2 | . 2 2 Hottest 80 | . 80 46 Shots Fired 145 | . 62 83 Gun 142 | . 59 83 Cannon . | . . . Launcher 3 | . 3 . Special . | . . . Kinetic 136 | . 53 83 Thermal . | . . . Explosive 3 | . 3 . Electromagnetic 6 | . 6 . Robot Hit Streak 18 | . 18 10 Robot Miss Streak 5 | . 3 5 Penetration Max . | . . . Secondary Targets 2 | . 2 . Max Gunslinging Chain 1 | . 1 . Shots Hit Robots 98 | . 41 57 Core Hits 45 | . 29 16 Critical Kills . | . . . Critical Parts Destroyed . | . . . Critical Strikes . | . . . Melee Attacks . | . . . Impact . | . . . Slashing . | . . . Piercing . | . . . Sneak Attacks . | . . . Combat Hostiles . | . . . Follow-up Attacks . | . . . Damage Inflicted 1841 | . 982 859 Guns 1446 | . 587 859 Cannons . | . . . Explosions 395 | . 395 . Melee . | . . . Ramming . | . . . Kinetic 1413 | . 554 859 Thermal 46 | . 46 . Explosive 349 | . 349 . Electromagnetic 33 | . 33 . Impact . | . . . Slashing . | . . . Piercing . | . . . Highest Corruption . | . . . Average Corruption . | . . . Corruption Purged . | . . . Corruption Blocked . | . . . Overload Shots . | . . . Overflow Damage . | . . . Projectiles . | . . . Explosions . | . . . Melee . | . . . Knockbacks . | . . . Impact . | . . . Kinetic . | . . . Secondary . | . . . Self-Inflicted Damage . | . . . Shots . | . . . Rammed . | . . . Targets Rammed . | . . . Kicked . | . . . Crushed . | . . . Highest Temperature 47 | . 47 . Average Temperature 12 | . 12 . Received Heat Transfer 282 | . 162 120 Siege Activations . | . . . Martial Activations . | . . . Shielding Activations . | . . . Robots Disrupted . | . . . Combat Hostiles . | . . . Robots Corrupted . | . . . Combat Hostiles . | . . . Parts Fried 1 | . 1 . Impact Corruptions . | . . . Robots Melted . | . . . Combat Hostiles . | . . . Parts Melted . | . . . Heat Transferred . | . . . Parts Sabotaged . | . . . Parts Stolen . | . . . Parts Stripped . | . . . Power Chain Reactions 1 | . 1 . Alert | -11 -10 -10 ------- Run | Yrd Mat Sub Maximum Alert Level . | . . . Low Security (%) 100 | 100 100 . Level 1 . | . . . Level 2 . | . . . Level 3 . | . . . Level 4 . | . . . Level 5 . | . . . High Security . | . . . Max Security . | . . . Peak Influence 131 | . 131 . Initial . | . . . Average 30 | . 32 . Influence Increases 379 | . 329 50 Destroy 0b10 Robot/C 260 | . 220 40 Destroy 0b10 Robot/NC 35 | . 35 . Destroy Leader 70 | . 60 10 Destroy Structure 14 | . 14 . Influence Decreases 379 | . 329 50 Time Decay 379 | . 329 50 Squads Dispatched 2 | . 2 . Investigation 1 | . 1 . Extermination . | . . . Reinforcement 1 | . 1 . Assault . | . . . Garrison . | . . . Intercept . | . . . Searches Triggered . | . . . Construction Impeded . | . . . Haulers Reinforced . | . . . Active Scanning Responses . | . . . Cargo Convoy Interrupts . | . . . Stealth | -11 -10 -10 --------- Run | Yrd Mat Sub Distress Signals . | . . . Communications Jammed . | . . . Distress Signals . | . . . Times Spotted 31 | . 22 9 Peak Tracking Total 5 | . 5 2 Tactical Retreats . | . . . Traps | -11 -10 -10 ------- Run | Yrd Mat Sub Traps Triggered 2 | . 1 1 Indirectly . | . . . Trap Hack Attempts . | . . . Triggered . | . . . Disarmed . | . . . Reprogrammed . | . . . Reused . | . . . Traps Extracted . | . . . Installed . | . . . Triggered . | . . . Machines | -11 -10 -10 ---------- Run | Yrd Mat Sub Machines Disabled . | . . . Max in Single Turn . | . . . Machines Repaired . | . . . Machines Dismantled . | . . . Machines Sabotaged . | . . . Overloaded Fab Kills . | . . . Hacking | -11 -10 -10 --------- Run | Yrd Mat Sub Machines Accessed 4 | . 3 1 Terminals 2 | . 2 . Fabricators . | . . . Repair Stations . | . . . Recycling Units 1 | . 1 . Scanalyzers . | . . . Garrison Access . | . . . Total Hacks 8 | . 3 5 Successful 8 | . 3 5 Failed . | . . . Catastrophic . | . . . Database Lockouts . | . . . Manual 1 | . . 1 Terminals 2 | . 2 . Fabricators . | . . . Repair Stations . | . . . Recycling Units 1 | . 1 . Scanalyzers . | . . . Garrison Access . | . . . Terminal Hacks 7 | . 2 5 Record 5 | . . 5 Prototype ID Bank 1 | . 1 . Alert Level 1 | . 1 . Fabricator Hacks . | . . . Repair Station Hacks . | . . . Recycling Unit Hacks 1 | . 1 . Report Inventory 1 | . 1 . Scanalyzer . | . . . Garrison Access Hacks . | . . . Unauthorized Hacks . | . . . Terminals . | . . . Fabricators . | . . . Repair Stations . | . . . Recycling Units . | . . . Scanalyzers . | . . . Garrison Access . | . . . Data Cores Recovered 1 | . 1 . Used . | . . . Hacking Detections 1 | . 1 . Full Trace Events . | . . . Feedback Events . | . . . Feedback Blocked . | . . . Robot Schematics Acquired . | . . . Robots Built . | . . . Authchips . | . . . Time . | . . . Total Robot Build Rating . | . . . Part Schematics Acquired . | . . . Parts Built . | . . . Authchips . | . . . Time . | . . . Total Part Build Rating . | . . . Part Studies Acquired . | . . . Parts Repaired . | . . . Time . | . . . Parts Recycled . | . . . Recycled Matter . | . . . Retrieved Matter . | . . . Retrieved Components . | . . . Parts Scanalyzed . | . . . Part Schematics Acquired . | . . . Parts Damaged . | . . . Bothacking | -11 -10 -10 ------------ Run | Yrd Mat Sub Used RIF Installer . | . . . Robots Hacked . | . . . Non-combat . | . . . Combat . | . . . Robot Hacks Applied . | . . . Relay Couplers Released . | . . . Fabnet Peak Effective % . | . . . Robots Rewired . | . . . Allies Hacked . | . . . Hacks Repelled . | . . . Allies | -11 -10 -10 -------- Run | Yrd Mat Sub Total Allies . | . . . Largest Group . | . . . Highest-Rated Group . | . . . Highest-Rated Ally . | . . . Total Orders . | . . . Ally Attacks . | . . . Total Damage . | . . . Kills . | . . . Allies Corrupted . | . . . Allies Melted . | . . . Intel | -11 -10 -10 ------- Run | Yrd Mat Sub Active Infowar (turns) . | . . . Robot Analysis Total . | . . . Derelict Logs Recovered . | . . . Drone Launches . | . . . Drone Recoveries . | . . . Exploration | -11 -10 -10 ------------- Run | Yrd Mat Sub Turns Passed 4065 | 81 1602 2382 Spaces Moved 1138 | 48 546 544 Core 5 | 5 . . Treads 1133 | 43 546 544 Legs . | . . . Wheels . | . . . Hover . | . . . Flight . | . . . Fastest Speed 50 | 50 160 320 Average Speed 304 | 148 238 385 Slowest Speed 480 | 160 320 480 Overloaded Moves . | . . . Propulsion Burnouts . | . . . Robots Hopped . | . . . Potential Cave-ins . | . . . Cave-ins Triggered . | . . . Exploration Rate (%) 46 | 3 92 43 Regions Visited 2 Branch Regions 1 Pre-discovered Areas . | . . . Known Exits Taken . | . . . Unknown Exits Taken 2 | 1 1 . Scrap Searched 3 | . . 3 Spaces Dug . | . . . Terrain Destroyed 14 | . 14 . Melee . | . . . Projectile . | . . . AOE 14 | . 14 . Terrain Rammed . | . . . Walls Destroyed . | . . . Machines Disabled . | . . . Actions | -11 -10 -10 --------- Run | Yrd Mat Sub Total 1620 | 55 801 764 Wait 365 | . 195 170 Move 1136 | 47 545 544 Hop . | . . . Pick Up 15 | 2 11 2 Fast Attach 11 | 5 6 . Attach 8 | 1 2 5 Detach 7 | . 7 . Swap . | . . . Drop 5 | . 4 1 Fire 73 | . 31 42 Melee . | . . . Ram . | . . . Kick . | . . . Crush . | . . . Escape Stasis . | . . . Rewire . | . . . Trap . | . . . Miscellaneous . | . . . Route ------- -11/Scrapyard -10/Materials (discovered 5 exits: [*Mat x2] / [*Min x2] / *Sub) -10/Subcaves (discovered 2 exits: [*Mat] / Rec) History --------- Turn | Location | Event 28 | -11/Scrapyard | Discovered new exit (range 16) 82 | -11/Scrapyard | Entered Materials 311 | -10/Materials | Build established: Mutant 420 | -10/Materials | Discovered new exit (range 16) 706 | -10/Materials | Discovered new exit (range 13) 993 | -10/Materials | Discovered new exit (range 16) 1392 | -10/Materials | Discovered new exit (range 4) 1642 | -10/Materials | Discovered new exit (range 8) 1684 | -10/Materials | Entered Subcaves 1890 | -10/Subcaves | Visited Clippyterm 1900 | -10/Subcaves | Identified exit to Recycling 1900 | -10/Subcaves | Learned Factory stockpile data 2732 | -10/Subcaves | Discovered new exit (range 12) 2749 | -10/Subcaves | Core integrity fell below 50% 2913 | -10/Subcaves | A swath of the cavern ceiling suddenly collapsed 3304 | -10/Subcaves | Core integrity fell below 20% 4066 | -10/Subcaves | Destroyed by KN-AQD(R) with Subdweller Laser Last Messages --------------- 03218_ ZR-INQ(u) tweaks Twisted Machinery. 03298_ Lgt. Armor Plating destroyed. 03300_ Autogun destroyed. 03317_ 46-8NX(R) destroyed. 03348_ Acquired 58 matter. 03386_ ZR-INQ(u) tweaks Twisted Machinery. 03449_ Searching scrap... 03449_ Found Battle Cannon. 03449_ Found Sub. Shrapnel Launcher. 03449_ Found 55 Matter. 03450_ Acquired 15 matter. 03454_ Searching scrap... 03454_ Found Sub. Machine Gun. 03454_ Found 68 Matter. 03463_ Acquired Battle Cannon. 03536_ Searching scrap... 03536_ Found Sub. Beam Cannon. 03536_ Found 65 Matter. 03578_ Subatomizers dissect the Disposable Heat Sink. Map ----- +----------------------------------------------------+ | # ##?????????????????????????????????????? | | #??????????????????????????????????????? | | #??????????????????????????????????????? | | #??????????????????????????????????????? | | ##??????????????????????????????????????? | | ##??????????????????????????????????????? | | ##?????????????????????????????????????? | | ###?????#######???????????????????????? | | ## #????## ##??????????????????????? | | ## #??### #??????????????????????? | | # ####?## #???????????????????????? | | # ###### #?????????????????????????? | | # ## #?????????????????????????? | | ##????????????????????????? | | ##???????????????????????? | | # ##########??????????????? | | ## ## """"##?????????????? | | ## ### ### ### " ""#?????????????? | | ## ##?# #?## #?# #??????????????? | | # ##?# #??# #?# ### ## ##??????????????? | | ## ### #??# ### #########???????????????? | | ?## ### #??# ## #####?????????????? | | ### #####??# #?????????????? | | # ##????# R #?????????????? | | # ####?# ## #?????????????? | | # #### @ #?? #?????????? | | ## #?# ######???? ?##?????????? | | # ## ## ##??????????? ????????????? | | #### ### ###??????????????????????????? | | ##### ####?## #????????????????????????????? | | ## #????# #????????????????????????????? | | ##????# ????????????????????????????? | | ##???? ?????????????????????????????? | | ## #????? ???????????????????????????????? | | ### #???? ????????????????????????????????? | | ### #???? ????????????????????????????????? | | ####?????? ?????????????????????????????????? | | #???????????????????????????????????????????? | | # ##???????????????????????????????????????????? | | #????????????????????????????????????????????? | | #######???????????????????????????????????????? | | #####""####????????????????????????????????????? | | #"""#"" ## ""????????????????????????????????? | | # ##"# ?????????????????????????????? | | ###"## ## #?????????????????????????????? | | ###" ##??## #??????????????????????????????????? | | # ### "##??????????????????????????????????? | | # # # ""#??????????????????????????????????? | | # # # #?????????"#????????????????????????? | | ## ## # ##?????????? ????????????????????????? | +----------------------------------------------------+ Best States ------------- Heat Dissipation 25 Energy Generation 14 Energy Capacity 160 Matter Stores 300 Matter Capacity 300 Sight Range 16 Terrain Scan Density 10 Armor Coverage 150 Evasion (%) 40 Recoil Reduction 2 Item Schematics ----------------- None Robot Schematics ------------------ None Fabricated ------------ Nothing Repaired ---------- Nothing Studied --------- None Alien Tech Used ----------------- None Achievements -------------- None Challenges ------------ None Game ------ Seed MakeshiftGunMaul Manual? 0 Play Time 00:14:17 Cumulative 25.5 hours Start 2026.02.21 @ 13:38:37 End 2026.02.21 @ 13:48:49 Sessions 1 Manual Loads 0 Difficulty Rogue Special Mode None Game No. 68 Rogue 68 Adventurer 0 Explorer 0 Win Type - Total 0 Types 0/0/0/0/0/0/0/0/0/0 Lore% 17 Gallery% 25 Achievement% 20 Wizard Run 0 Options --------- Layout 1 ASCII 0 Keyboard 1 Movement Vi Keybinds 0 Fullscreen 1 Font 24/Smallcaps Map View 50x35 Zoom Use 0% Tactical HUD 1 Map Filters NONE Filters NONE Steam 1 RUN: 8985239f-a0de-4075-b4b9-95f41b058b24